Workbook

Sheet صفحه التسجيل
A1: رقم الفاتوره | B1: المجموع غير شامل الضريبه | D1: الضريبه | F1: اجمالى الفاتوره شامل الضريبه | H1: تاريخ الفاتوره | I1: رقم الفاتوره | J1: اسم العمــــــيل
A2: رقم :NO.000000 | H2: تحريرا فى:- 2018/0/0 | I2: INVOICEEE | J2: المطلوب من السيد: شركه
S7: 1250

Sheet INVOICEEE
E3: فـــــــــــاتوره | G3: رقم :NO.000000
A6: تحريرا فى:- 2018/0/0 | P6: الكميه | Q6: السعر قبل الضريبه | S6: السعر شامل الضريبه
A7: المطلوب من السيد: شركه | O7: =Q7*P7 -> 10526.31579 | P7: 8 | Q7: =R7 -> 1315.789474 | R7: =S7/1.14 -> 1315.789474 | S7: 1500
A8: سعر اجمالى | C8: سعر الوحدة | E8: الكميه | F8: الـــــــــــــــــــــــــــــــــبــــــــــــــــــــــــــيــــــــــــــان | O8: 8771.929825 | P8: 5 | Q8: 1754.385965 | R8: 1754.385965 | S8: 2000
A9: قرش | B9: جنيه | C9: قرش | D9: جنيه | O9: 15815.78947 | P9: 6 | Q9: 2635.964912 | R9: 2635.964912 | S9: 3005
A10: 32 | B10: 10526 | C10: 79 | D10: 1315 | E10: =P7 -> 8 | O10: 1304.04386 | P10: 1 | Q10: 1304.04386 | R10: 1304.04386 | S10: 1486.61
O11: 0 | P11: 0 | Q11: 0 | R11: 0
O12: 0 | P12: 0 | Q12: 0 | R12: 0
A13: 93 | B13: 8771 | C13: 39 | D13: 1754 | E13: =P8 -> 5 | O13: 0 | P13: 0 | Q13: 0 | R13: 0
O14: 0 | P14: 0 | Q14: 0 | R14: 0
O15: 0 | P15: 6 | Q15: 0 | R15: 0
A16: 79 | B16: 15815 | C16: 96 | D16: 2635 | E16: =P9 -> 6 | O16: 0 | P16: 0 | Q16: 0 | R16: 0
O17: 0 | P17: 0 | Q17: 0 | R17: 0
O18: 0
A19: 4 | B19: 1304 | C19: 4 | D19: 1304 | E19: 1 | N19: الاجمــــــــالى | O19: =SUM(O7:O17) -> 36418.07895
N20: الضريبه | O20: =O19*14/100 -> 5098.531053
N21: الاجمالى بعد الضريبه | O21: =O19+O20 -> 41516.61
N22: خصم 1 % ان وجد | O22: =O19*1/100 -> 364.1807895
N23: الاجمالى بعد الضريبه و بعد الخصم | O23: =O21-O22 -> 41152.42921
O27: محتاج التصاميم بنفس الشكل و المساحات بين الصفوف و بعضها
O31: مش عايزه بداله INT لانها بتعمل علامه عشريه وانا محتاجه بنفس الشكل بظبط
A38: 14 | B38: 351 | F38: خصم 1%
A41: =($O$19-INT($O$19))*100 -> 7.894736842 | B41: =QUOTIENT($O$19,1) -> 36418 | C41: المجمــــــــــــــــــــــــوع:
A43: =($O$20-INT($O$20))*100 -> 53.10526316 | B43: =QUOTIENT($O$20,1) -> 5098 | C43: 14% ضريبه المبيعات
A45: =($O$23-INT($O$23))*100 -> 42.92105263 | B45: =QUOTIENT($O$23,1) -> 41152 | C45: الاجـــــــــــــمــــــالى :- | F45: =IFERROR( "فقط" & " " & Ar_WriteDownNumber(B45," جنيهاً",)&Ar_WriteDownNumber(A45,"قرشاً") &"" & "لاغير","") -> فقط واحد وأربعون الف و مائة و أثنان و خمسون جنيهاًأثنان و أربعون قرشاً و أثنان و تسعون جزء من مائةلاغير
